bitfinex/quotes_SOLUSD_20240908
["timestamp","ask_amount","ask_price","bid_price","bid_amount"]
[1725770400526,7.7802,128.53,128.52,20.0]
[1725770400823,52.7802,128.53,128.51,20.0]
[1725770401030,45.0,128.52,128.51,20.0]
[1725770401516,45.0,128.52,128.5,9.78631465]
[1725770401717,45.0,128.52,128.51,20.0]
[1725770407033,7.7797,128.54,128.51,20.0]
[1725770407211,23.7293,128.55,128.51,20.0]
[1725770408435,45.0,128.54,128.51,20.0]
[1725770410032,45.0,128.54,128.52,9.78631465]
[1725770410242,45.0,128.55,128.52,9.78631465]
[1725770410623,6.4643,128.57,128.54,9.78631465]
[1725770410815,25.9737,128.59,128.55,20.0]
[1725770411132,36.07974128,128.59,128.55,20.0]
[1725770411713,7.7773,128.58,128.55,20.0]
[1725770412233,45.0,128.57,128.55,20.0]
[1725770417237,45.0,128.58,128.55,20.0]
[1725770420347,12.05089402,128.57,128.53,9.78631465]
[1725770420532,45.0,128.56,128.54,20.0]
[1725770421821,45.0,128.56,128.52,9.78631465]
[1725770422040,45.0,128.56,128.53,20.0]
[1725770425128,46.94510761,128.56,128.52,9.78631465]
[1725770425336,46.94510761,128.56,128.53,20.0]
[1725770427041,52.7788,128.56,128.53,20.0]
[1725770427247,51.6567,128.56,128.49,20.0]
[1725770427444,51.6567,128.56,128.51,9.78631465]
[1725770427622,51.6567,128.56,128.52,20.0]
[1725770428240,7.7792,128.55,128.52,20.0]
[1725770428543,45.0,128.54,128.52,20.0]
[1725770434054,45.0,128.55,128.52,20.0]
[1725770458080,45.0,128.55,128.53,9.78631465]
[1725770458279,10.10604128,128.57,128.54,20.0]
[1725770458593,10.10604128,128.57,128.55,9.78631465]
[1725770459593,45.0,128.56,128.55,9.78631465]
[1725770460084,45.0,128.56,128.55,29.78631465]
[1725770461588,45.0,128.56,128.55,20.0]
[1725770464260,45.0,128.56,128.53,20.0]
[1725770470413,52.7788,128.56,128.53,20.0]
[1725770470585,1.9450699,128.55,128.48,15.4062]
[1725770470904,1.9454921,128.54,128.5,9.78631465]
[1725770471915,1.9454921,128.54,128.51,20.0]
[1725770472382,9.7251921,128.54,128.51,20.0]
[1725770472577,45.0,128.53,128.51,20.0]
[1725770475209,45.0,128.54,128.52,9.78631465]
[1725770477986,45.0,128.54,128.53,20.0]
[1725770481611,10.32733017,128.56,128.53,20.0]
[1725770487115,6.5242,128.59,128.55,20.0]
[1725770487311,26.51173017,128.6,128.57,9.78631465]
[1725770487700,34.28793017,128.6,128.57,9.78631465]
[1725770488699,45.0,128.59,128.57,9.78631465]
[1725770493528,45.0,128.59,128.55,20.0]
[1725770493720,45.0,128.59,128.56,9.78631465]
[1725770493925,45.0,128.59,128.57,20.0]
[1725770503542,10.32733017,128.6,128.58,9.78631465]
[1725770504037,34.28603017,128.63,128.58,9.78631465]
[1725770504209,34.28603017,128.63,128.59,20.0]
[1725770505415,55.32733017,128.62,128.59,20.0]
[1725770517035,55.32733017,128.62,128.6,9.78631465]
[1725770518241,45.0,128.62,128.61,20.0]
[1725770521029,10.32733017,128.66,128.61,20.0]
[1725770521333,10.32733017,128.66,128.65,9.78631465]
[1725770521539,10.32733017,128.66,128.65,29.78631465]
[1725770523336,14.0736,128.69,128.65,29.78631465]
[1725770523543,24.40093017,128.69,128.65,29.78631465]
[1725770524450,16.63033017,128.69,128.65,29.78631465]
[1725770524624,45.0,128.68,128.66,20.0]
[1725770530328,12.27056194,128.67,128.66,20.0]
[1725770530638,55.32733017,128.67,128.65,20.0]
[1725770530955,45.0,128.66,128.65,20.0]
[1725770540844,45.0,128.66,128.63,20.0]
[1725770550439,8.51802963,128.65,128.63,20.0]
[1725770550641,46.94374976,128.64,128.61,9.78631465]
[1725770550963,46.94374976,128.64,128.62,20.0]
[1725770551560,45.0,128.64,128.62,20.0]
[1725770554563,45.0,128.64,128.61,9.78631465]
[1725770554768,45.0,128.64,128.62,20.0]
[1725770555345,45.0,128.64,128.61,9.78631465]
[1725770555545,45.0,128.64,128.62,20.0]
[1725770564944,52.7737,128.64,128.62,20.0]
[1725770565273,54.7176207,128.64,128.6,9.78631465]
[1725770565579,54.7176207,128.64,128.61,20.0]
[1725770566173,52.7737,128.64,128.61,20.0]
[1725770574076,15.445,128.62,128.52,16.1155]
[1725770574277,53.10967558,128.61,128.56,9.78631465]
[1725770574481,9.72070228,128.6,128.56,9.78631465]
[1725770574654,45.0,128.59,128.56,9.78631465]
[1725770575560,45.0,128.59,128.57,20.0]
[1725770577979,52.7767,128.59,128.57,20.0]
[1725770578186,7.7772,128.58,128.54,9.78631465]
[1725770578356,45.0,128.57,128.55,20.0]
[1725770587903,52.7783,128.57,128.5,20.0]
[1725770588185,52.7783,128.57,128.53,9.78631465]
[1725770588386,54.72328176,128.57,128.54,20.0]
[1725770589061,1.94492302,128.56,128.49,15.9362]
[1725770589262,1.94492302,128.56,128.45,6.3061]
[1725770589263,7.7797,128.54,128.5,9.78631465]
[1725770589465,15.5071,128.56,128.46,15.9362]
[1725770589466,52.7804,128.53,128.46,15.9362]
[1725770589777,52.7804,128.53,128.49,9.78631465]
[1725770590871,52.7804,128.53,128.5,20.0]
[1725770591370,14.0183,128.52,128.5,20.0]
[1725770591565,45.0,128.51,128.48,9.78631465]
[1725770591761,45.0,128.51,128.49,20.0]
[1725770597492,45.0,128.51,128.48,9.78631465]
[1725770597800,45.0,128.51,128.49,20.0]
[1725770627218,46.94568898,128.51,128.43,15.9362]
[1725770627422,18.10963017,128.5,128.45,9.78631465]
[1725770627622,46.94608257,128.49,128.43,15.9362]
[1725770627813,46.94608257,128.49,128.45,9.78631465]
[1725770628006,45.0,128.49,128.39,15.7416]
[1725770628210,45.0,128.49,128.43,9.78631465]
[1725770629328,7.7834,128.48,128.43,9.78631465]
[1725770629527,45.0,128.47,128.43,9.78631465]
[1725770629827,45.0,128.47,128.44,20.0]
[1725770636825,45.0,128.47,128.45,9.78631465]
[1725770637029,45.0,128.48,128.46,20.0]
[1725770642938,45.0,128.49,128.47,9.78631465]
[1725770643232,45.0,128.49,128.48,20.0]
[1725770644812,52.7827,128.49,128.47,20.0]
[1725770645016,52.7827,128.49,128.45,9.78631465]
[1725770645326,52.7827,128.49,128.46,20.0]
[1725770645639,63.11003017,128.49,128.46,20.0]
[1725770645934,63.11003017,128.49,128.44,9.78631465]
[1725770646168,63.11003017,128.49,128.45,20.0]
[1725770650037,52.7827,128.49,128.45,20.0]
[1725770653744,45.0,128.49,128.46,9.78631465]
[1725770653930,45.0,128.49,128.47,20.0]
[1725770659136,45.0,128.5,128.47,20.0]
[1725770660926,45.0,128.5,128.46,9.78631465]
[1725770661259,45.0,128.5,128.47,20.0]
[1725770668157,52.7821,128.5,128.47,20.0]
[1725770694364,63.10943017,128.5,128.47,20.0]
[1725770697641,10.32733017,128.5,128.48,9.78631465]
[1725770697876,7.7798,128.54,128.49,21.55643064]
[1725770698171,7.7798,128.54,128.51,9.78631465]
[1725770698381,17.62629946,128.54,128.52,20.0]
[1725770698564,17.62629946,128.54,128.49,29.78631465]
[1725770699246,45.0,128.53,128.49,29.78631465]
[1725770699444,52.7803,128.53,128.49,29.78631465]
[1725770699649,62.62679946,128.53,128.49,20.0]
[1725770699858,62.62679946,128.53,128.48,20.0]
[1725770700240,7.7811,128.52,128.48,20.0]
[1725770700446,45.0,128.51,128.48,20.0]
[1725770701971,52.7816,128.51,128.48,20.0]
[1725770705852,52.7816,128.51,128.47,20.0]
[1725770707767,52.7816,128.51,128.48,9.78631465]
[1725770708066,45.0,128.51,128.49,20.0]
[1725770710566,45.0,128.52,128.49,20.0]
[1725770710786,17.62689946,128.53,128.49,20.0]
[1725770712371,45.0,128.52,128.49,20.0]
[1725770712777,52.7811,128.52,128.49,20.0]
[1725770717992,45.0,128.52,128.49,20.0]
[1725770718363,30.4075,128.55,128.5,9.78631465]
[1725770718559,30.4075,128.55,128.51,20.0]
[1725770719672,45.0,128.54,128.51,20.0]
[1725770720994,17.62439946,128.57,128.52,9.78631465]
[1725770721222,17.62439946,128.57,128.54,9.78631465]
[1725770721223,9.84649946,128.57,128.54,9.78631465]
[1725770721367,9.84649946,128.57,128.55,20.0]
[1725770721572,7.7767,128.59,128.55,20.0]
[1725770722389,9.84649946,128.6,128.56,9.78631465]
[1725770723567,9.84649946,128.6,128.57,20.0]
[1725770725076,7.7766,128.59,128.55,9.78631465]
[1725770725279,45.0,128.58,128.56,20.0]
[1725770726981,45.0,128.58,128.54,20.0]
[1725770728504,45.0,128.58,128.53,29.78631465]
[1725770729311,7.7778,128.57,128.53,29.78631465]
[1725770729494,45.0,128.56,128.53,29.78631465]
[1725770730711,45.0,128.57,128.53,29.78631465]
[1725770741531,45.0,128.58,128.55,9.78631465]
[1725770741706,45.0,128.59,128.57,9.78631465]
[1725770741901,45.0,128.6,128.58,20.0]
[1725770744128,52.776,128.6,128.58,20.0]
[1725770747709,45.0,128.6,128.58,20.0]
[1725770748113,33.16019946,128.62,128.58,20.0]
[1725770748432,17.62149946,128.62,128.59,9.78631465]
[1725770749012,9.84649946,128.61,128.58,20.0]
[1725770750029,45.0,128.6,128.58,20.0]
[1725770751723,45.0,128.61,128.58,20.0]
[1725770754443,45.0,128.61,128.59,9.78631465]
[1725770755339,45.0,128.62,128.6,20.0]
[1725770756513,9.84649946,128.61,128.6,20.0]
[1725770756712,54.84649946,128.61,128.6,20.0]
[1725770757339,54.84649946,128.61,128.59,9.78631465]
[1725770757340,62.62189946,128.61,128.56,15.7664]
[1725770757537,45.0,128.6,128.57,9.78631465]
[1725770757716,45.0,128.6,128.57,29.78631465]
[1725770764926,52.7761,128.6,128.57,20.0]
[1725770765122,52.7761,128.6,128.55,9.78631465]
[1725770765325,54.7206952,128.6,128.56,20.0]
[1725770771338,60.9839952,128.6,128.56,20.0]
[1725770779151,7.7766,128.59,128.56,20.0]
[1725770779330,53.2078952,128.6,128.53,29.78631465]
[1725770779331,45.0,128.58,128.53,29.78631465]
[1725770780135,45.0,128.58,128.55,9.78631465]
[1725770780335,45.0,128.58,128.56,20.0]
[1725770780535,23.88589946,128.6,128.57,9.78631465]
[1725770780536,45.0,128.59,128.57,9.78631465]
[1725770780843,45.0,128.59,128.58,20.0]
[1725770784159,54.84649946,128.59,128.58,20.0]
[1725770784356,62.62319946,128.59,128.56,20.0]
[1725770787472,52.7767,128.59,128.56,20.0]
[1725770787661,45.0,128.59,128.56,20.0]
[1725770788946,45.0,128.59,128.57,9.78631465]
[1725770789144,45.0,128.59,128.58,20.0]
[1725770790861,45.0,128.59,128.54,20.0]
[1725770791065,54.84649946,128.59,128.54,9.78631465]
[1725770791253,54.84649946,128.59,128.55,20.0]
[1725770792463,62.62339946,128.59,128.55,20.0]
[1725770794164,52.7769,128.59,128.55,20.0]
[1725770794663,45.0,128.59,128.56,9.78631465]
[1725770794841,45.0,128.59,128.57,20.0]
[1725770797765,45.0,128.59,128.58,9.78631465]
[1725770798062,45.0,128.59,128.58,29.78631465]
[1725770800047,9.84649946,128.62,128.58,29.78631465]
[1725770800450,9.84649946,128.62,128.59,20.0]
[1725770801363,45.0,128.61,128.59,20.0]
[1725770809964,52.7755,128.61,128.59,20.0]
[1725770810179,45.0,128.61,128.55,20.0]
[1725770810379,45.0,128.61,128.58,9.78631465]
[1725770810669,45.0,128.61,128.59,20.0]
[1725770815069,45.0,128.61,128.55,20.0]
[1725770815270,45.0,128.61,128.58,9.78631465]
[1725770815488,45.0,128.61,128.59,20.0]
[1725770819294,46.94425864,128.61,128.59,20.0]
[1725770819506,1.94424567,128.6,128.58,20.0]
[1725770819799,45.0,128.61,128.58,20.0]
[1725770820097,52.7754,128.61,128.58,20.0]
[1725770820292,1.94434641,128.6,128.58,20.0]
[1725770821892,52.7754,128.61,128.58,20.0]
[1725770822078,54.71981285,128.61,128.58,20.0]
[1725770822280,52.7754,128.61,128.58,20.0]
[1725770822792,7.7767,128.59,128.56,20.0]
[1725770823001,45.0,128.58,128.56,20.0]
[1725770823305,45.0,128.58,128.55,20.0]
[1725770823484,52.7772,128.58,128.55,20.0]
[1725770823796,7.7779,128.57,128.53,9.78631465]
[1725770824002,45.0,128.56,128.54,20.0]
[1725770824290,45.0,128.56,128.52,20.0]
[1725770824291,45.0,128.56,128.52,9.78631465]
[1725770825583,45.0,128.56,128.53,20.0]
[1725770828095,45.0,128.57,128.54,9.78631465]
[1725770828301,45.0,128.57,128.55,20.0]
[1725770834219,45.0,128.57,128.56,9.78631465]
[1725770834387,45.0,128.57,128.56,29.78631465]
[1725770835605,44.5,128.57,128.56,29.78631465]
[1725770836900,44.5,128.57,128.56,20.0]
[1725770837207,44.5,128.57,128.55,20.0]
[1725770837399,13.8027,128.59,128.55,20.0]
[1725770837783,45.0,128.58,128.55,20.0]
[1725770838987,44.5,128.58,128.55,20.0]
[1725770840408,54.34649946,128.58,128.55,20.0]
[1725770840585,54.34649946,128.58,128.53,20.0]
[1725770841332,7.7779,128.57,128.53,20.0]
[1725770841493,45.0,128.56,128.53,20.0]
[1725770845134,1.94499597,128.55,128.53,20.0]
[1725770846724,1.94499597,128.55,128.51,20.0]
[1725770846932,1.94530698,128.54,128.51,20.0]
[1725770847935,1.94528603,128.55,128.51,20.0]
[1725770849834,52.7785,128.56,128.51,20.0]
[1725770850324,52.7785,128.56,128.52,9.78631465]
[1725770850631,52.7785,128.56,128.53,20.0]
[1725770853626,52.7785,128.56,128.51,9.78631465]
[1725770853825,52.7785,128.56,128.52,20.0]
[1725770860841,6.075,128.55,128.52,20.0]
[1725770861042,45.0,128.54,128.52,20.0]
[1725770861547,46.9452568,128.54,128.52,20.0]
[1725770861746,45.0,128.54,128.5,20.0]
[1725770862845,46.94528045,128.54,128.5,20.0]
[1725770863032,54.72508045,128.54,128.48,9.78631465]
[1725770863363,54.72508045,128.54,128.49,20.0]
[1725770864237,52.7798,128.54,128.49,20.0]
[1725770864546,52.7798,128.54,128.5,9.78631465]
[1725770864860,52.7798,128.54,128.51,20.0]
[1725770865646,45.0,128.54,128.51,20.0]
[1725770868255,45.0,128.54,128.52,9.78631465]
[1725770868429,45.0,128.54,128.53,20.0]
[1725770873152,45.0,128.54,128.52,9.78631465]
[1725770873750,45.0,128.54,128.53,20.0]
[1725770875956,45.0,128.54,128.51,9.78631465]
[1725770876140,45.0,128.54,128.52,20.0]
[1725770878678,45.0,128.54,128.46,20.0]
[1725770878837,7.7803,128.53,128.49,9.78631465]
[1725770879041,45.0,128.52,128.5,20.0]
[1725770886654,6.075,128.55,128.5,20.0]
[1725770887263,13.8542,128.55,128.5,20.0]
[1725770887765,45.0,128.54,128.5,20.0]
[1725770888569,52.7798,128.54,128.5,20.0]
[1725770896574,9.72599991,128.53,128.5,20.0]
[1725770896767,45.0,128.52,128.48,9.78631465]
[1725770896969,45.0,128.52,128.49,20.0]
[1725770897275,46.94562322,128.52,128.49,20.0]
[1725770897480,46.94562322,128.52,128.49,19.0]
[1725770899386,45.0,128.52,128.49,19.0]
[1725770900882,45.0,128.52,128.48,9.78631465]
[1725770901059,45.0,128.52,128.49,20.0]
[1725770905987,52.7809,128.52,128.49,20.0]
[1725770906289,7.7817,128.51,128.49,20.0]
[1725770906497,45.0,128.5,128.46,29.78631465]
[1725770914077,45.0,128.5,128.46,20.0]
[1725770914275,52.7822,128.5,128.45,9.78631465]
[1725770914476,52.7822,128.5,128.46,20.0]
[1725770916387,45.0,128.5,128.46,20.0]
[1725770922384,45.0,128.5,128.47,9.78631465]
[1725770922581,45.0,128.5,128.48,20.0]
[1725770926202,45.0,128.5,128.46,9.78631465]
[1725770926385,45.0,128.5,128.47,20.0]
[1725770931008,45.0,128.5,128.48,9.78631465]
[1725770931217,6.5805,128.51,128.48,9.78631465]
[1725770931509,15.0128,128.53,128.5,9.78631465]
[1725770931803,15.0128,128.53,128.51,20.0]
[1725770933193,15.0128,128.53,128.5,9.78631465]
[1725770933383,15.0128,128.53,128.51,20.0]
[1725770933810,45.0,128.52,128.51,20.0]
[1725770937094,9.84649946,128.54,128.51,20.0]
[1725770937415,9.84649946,128.54,128.52,9.78631465]
[1725770937720,16.1591,128.57,128.53,20.0]
[1725770937888,16.1591,128.57,128.54,9.78631465]
[1725770938083,16.1591,128.57,128.55,20.0]
[1725770940103,16.11854946,128.58,128.55,20.0]
[1725770940707,45.0,128.57,128.55,20.0]
[1725770942291,45.0,128.57,128.54,9.78631465]
[1725770942493,45.0,128.57,128.55,20.0]
[1725770943694,45.0,128.57,128.53,20.0]
[1725770945515,45.0,128.57,128.54,9.78631465]
[1725770945823,45.0,128.57,128.55,20.0]
[1725770949323,46.94485902,128.57,128.55,20.0]
[1725770950432,45.0,128.57,128.55,20.0]
[1725770954847,52.7779,128.57,128.55,20.0]
[1725770955045,52.7779,128.57,128.48,16.4992]
[1725770955046,52.7779,128.57,128.53,9.78631465]
[1725770955338,52.7779,128.57,128.54,20.0]
[1725770956727,45.0,128.57,128.54,20.0]
[1725770960349,52.7781,128.57,128.54,20.0]
[1725770960537,68.9916,128.57,128.54,20.0]
[1725770966359,61.2135,128.57,128.54,20.0]
[1725770967852,61.2135,128.57,128.54,9.78631465]
[1725770968058,61.2135,128.57,128.55,20.0]
[1725770972569,45.0,128.57,128.55,20.0]
[1725770973889,6.0283,128.58,128.55,20.0]
[1725770974957,45.0,128.57,128.55,20.0]
[1725770975960,46.94475538,128.57,128.55,20.0]
[1725770979690,45.0,128.57,128.55,20.0]
[1725770987678,45.0,128.57,128.56,9.78631465]
[1725770987877,45.0,128.57,128.56,29.78631465]
[1725770991486,45.0,128.57,128.56,20.0]
[1725770991777,45.0,128.57,128.55,9.78631465]
[1725770991979,45.0,128.57,128.56,20.0]
[1725770997488,45.0,128.57,128.53,9.78631465]
[1725770998907,45.0,128.57,128.54,20.0]
[1725771001299,45.0,128.57,128.55,9.78631465]
[1725771001508,45.0,128.58,128.56,20.0]
[1725771001990,45.0,128.59,128.56,20.0]
[1725771003913,45.0,128.59,128.57,9.78631465]
[1725771004413,16.35956557,128.61,128.57,9.78631465]
[1725771004584,6.2692,128.61,128.59,9.78631465]
[1725771005416,7.7744,128.63,128.6,20.0]
[1725771005797,77.72071394,128.64,128.6,20.0]
[1725771006117,31.69706557,128.64,128.61,9.78631465]
[1725771006296,31.69706557,128.64,128.62,20.0]
[1725771007516,16.37396557,128.64,128.62,20.0]
[1725771008398,18.31771935,128.64,128.62,20.0]
[1725771008712,45.0,128.63,128.62,20.0]
[1725771011325,55.09036557,128.63,128.59,9.78631465]
[1725771011618,7.7754,128.61,128.55,9.78631465]
[1725771011802,46.94452509,128.6,128.55,9.78631465]
[1725771014126,46.94452509,128.6,128.56,20.0]
[1725771016935,59.0601,128.6,128.56,20.0]
[1725771017122,59.0601,128.6,128.55,9.78631465]
[1725771017319,59.0601,128.6,128.56,20.0]
[1725771020245,7.7767,128.59,128.56,20.0]
[1725771020536,45.0,128.58,128.56,20.0]
[1725771022424,45.0,128.58,128.54,20.0]
[1725771029945,6.2836,128.6,128.55,9.78631465]
[1725771030145,6.2836,128.6,128.56,20.0]
[1725771032346,45.0,128.59,128.56,20.0]
[1725771033437,1.9444916,128.58,128.56,20.0]
[1725771033820,45.0,128.59,128.56,20.0]
[1725771034137,46.94459417,128.59,128.56,20.0]
[1725771034644,71.52006557,128.59,128.56,20.0]
[1725771034847,71.52006557,128.59,128.54,20.0]
[1725771036247,7.7772,128.58,128.54,20.0]
[1725771036451,45.0,128.57,128.54,20.0]
[1725771037058,46.94490703,128.57,128.54,20.0]
[1725771042658,45.0,128.57,128.54,20.0]
[1725771044538,45.0,128.58,128.55,9.78631465]
[1725771044739,45.0,128.58,128.56,20.0]
[1725771066971,15.9991,128.62,128.57,9.78631465]
[1725771067159,14.0577,128.64,128.6,9.78631465]
[1725771067384,14.0577,128.64,128.61,20.0]
[1725771068771,6.284,128.64,128.61,20.0]
[1725771069487,16.37436557,128.64,128.61,20.0]
[1725771069688,10.09036557,128.63,128.6,9.78631465]
[1725771069863,10.09036557,128.63,128.61,20.0]
[1725771070073,45.0,128.62,128.61,20.0]
[1725771071188,22.2831,128.68,128.61,20.0]
[1725771071484,22.2831,128.68,128.65,9.78631465]
[1725771071688,22.2831,128.68,128.63,9.78631465]
[1725771071884,22.2831,128.68,128.64,20.0]
[1725771073667,45.0,128.67,128.64,20.0]
[1725771074268,61.85408883,128.67,128.64,20.0]
[1725771074474,9.08228883,128.66,128.64,20.0]
[1725771074673,45.0,128.65,128.63,9.78631465]
[1725771074883,45.0,128.65,128.64,29.78631465]
[1725771079174,6.284,128.68,128.64,29.78631465]
[1725771079371,39.13488883,128.71,128.67,9.78631465]
[1725771080211,39.13488883,128.71,128.65,9.78631465]
[1725771080496,39.13488883,128.71,128.66,20.0]
[1725771080675,45.0,128.7,128.66,20.0]
[1725771081193,54.08228883,128.7,128.66,20.0]
[1725771083876,56.0253902,128.7,128.66,20.0]
[1725771084086,54.08228883,128.7,128.66,20.0]
[1725771084278,61.85238883,128.7,128.66,20.0]
[1725771085496,63.79556531,128.7,128.66,20.0]
[1725771086206,61.85238883,128.7,128.66,20.0]
[1725771089073,7.7707,128.69,128.66,20.0]
[1725771089280,45.0,128.68,128.63,9.78631465]
[1725771089497,45.0,128.68,128.64,20.0]
[1725771094016,45.0,128.68,128.65,9.78631465]
[1725771094174,45.0,128.68,128.66,20.0]
[1725771094805,45.0,128.69,128.66,20.0]
[1725771095898,45.0,128.69,128.67,9.78631465]
[1725771104017,45.0,128.69,128.65,9.78631465]
[1725771104304,45.0,128.69,128.66,20.0]
[1725771104507,52.7708,128.69,128.66,20.0]
[1725771111595,1.94312171,128.68,128.66,20.0]
[1725771112292,23.208,128.75,128.67,11.34091204]
[1725771112491,23.208,128.75,128.71,9.78631465]
[1725771112709,30.9751,128.75,128.71,9.78631465]
[1725771113706,45.0,128.74,128.71,9.78631465]
[1725771114202,52.7677,128.74,128.67,16.255]
[1725771114410,52.7677,128.74,128.69,9.78631465]
[1725771114722,52.7677,128.74,128.7,20.0]
[1725771118120,52.7677,128.74,128.71,9.78631465]
[1725771120305,52.7677,128.74,128.7,20.0]
[1725771120505,52.7677,128.74,128.68,20.0]
[1725771120809,52.7677,128.74,128.7,9.78631465]
[1725771121009,52.7677,128.74,128.71,20.0]
[1725771121423,7.7683,128.73,128.71,20.0]
[1725771121598,7.7683,128.73,128.69,9.78631465]
[1725771121599,45.0,128.72,128.69,9.78631465]
[1725771121798,45.0,128.72,128.7,20.0]
[1725771122823,7.7677,128.74,128.7,20.0]
[1725771122824,45.0,128.73,128.7,20.0]
[1725771126003,45.0,128.73,128.71,9.78631465]
[1725771128531,54.71074215,128.73,128.7,20.0]
[1725771128710,52.7682,128.73,128.7,20.0]
[1725771133036,7.7694,128.71,128.67,9.78631465]
[1725771133201,7.7694,128.71,128.68,20.0]
[1725771133202,45.0,128.7,128.68,20.0]
[1725771143013,45.0,128.7,128.69,9.78631465]
[1725771143215,23.208,128.75,128.69,29.78631465]
[1725771143419,7.7677,128.74,128.71,9.78631465]
[1725771144429,45.0,128.73,128.71,9.78631465]
[1725771153042,23.41,128.78,128.71,9.78631465]
[1725771153043,22.6166,128.78,128.71,9.78631465]
[1725771153337,22.6166,128.78,128.72,20.0]
[1725771153534,31.69888883,128.78,128.72,20.0]
[1725771154044,55.10888883,128.78,128.72,20.0]
[1725771154336,7.7664,128.76,128.72,20.0]
[1725771154526,45.0,128.75,128.72,20.0]
[1725771154733,52.767,128.75,128.72,20.0]
[1725771161144,1.94231948,128.77,128.73,9.78631465]
[1725771161353,30.3818,128.78,128.74,20.0]
[1725771161828,7.7658,128.77,128.74,20.0]
[1725771162720,45.0,128.76,128.74,20.0]
[1725771163131,45.0,128.76,128.73,9.78631465]
[1725771163540,45.0,128.76,128.74,20.0]
[1725771176041,45.0,128.76,128.71,15.0004]
[1725771176042,45.0,128.76,128.73,9.78631465]
[1725771176237,45.0,128.76,128.74,20.0]
[1725771182763,46.94193784,128.76,128.74,20.0]
[1725771182957,45.0,128.76,128.72,29.78631465]
[1725771196064,45.0,128.77,128.72,29.78631465]
[1725771197879,30.3819,128.78,128.74,9.78631465]
[1725771197880,6.4812,128.78,128.74,9.78631465]
[1725771198066,6.4812,128.78,128.75,20.0]
[1725771199270,6.4812,128.78,128.74,9.78631465]
[1725771199567,6.4812,128.78,128.75,20.0]
[1725771199772,45.0,128.77,128.75,20.0]
[1725771200550,45.0,128.78,128.75,20.0]
[1725771201550,45.0,128.78,128.76,9.78631465]
[1725771201769,0.8672256,128.8,128.77,20.0]
[1725771203379,45.8672256,128.8,128.77,20.0]
[1725771204356,45.8672256,128.8,128.78,9.78631465]
[1725771204556,0.8672256,128.8,128.79,20.0]
[1725771206477,15.10921443,128.82,128.79,20.0]
[1725771206656,45.0,128.81,128.79,20.0]
[1725771207885,46.94114982,128.81,128.79,20.0]
[1725771208064,46.94114982,128.81,128.77,20.0]
[1725771208780,45.0,128.81,128.77,20.0]
[1725771211168,1.94143696,128.8,128.76,20.0]
[1725771211369,1.94156887,128.79,128.76,20.0]
[1725771212255,52.7635,128.81,128.76,20.0]
[1725771212461,54.70504627,128.81,128.76,20.0]
[1725771213581,7.764,128.8,128.76,20.0]
[1725771213780,45.0,128.79,128.76,20.0]
[1725771213983,45.0,128.79,128.77,9.78631465]
[1725771214160,45.0,128.79,128.78,20.0]
[1725771220167,45.0,128.79,128.75,9.78631465]
[1725771220369,45.0,128.8,128.76,20.0]